Workbook

Sheet Balance de Comprobación
C2: Fondo de Jubilaciones y Pensiones del Poder Judicial
C4: Balance de Comprobación
C6: Al 31 de Enero de 2018
C9: ACTIVO
C10: Cuentas Corrientes Y De Ahorro | F10: 206064324.3
C11: Inversiones En Valores De Emisores Nacionales | F11: 4.790385908e+11
C12: Cuentas Por Cobrar | F12: 196645526.8
C13: Productos Por Cobrar Sobre Inversiones | F13: 8527911266
C14: Préstamos a Afiliados | F14: 43748880.94
C15: Aportes Por Cobrar A Los Trabajadores | F15: 2874161014
C16: Aportes Por Cobrar Al Patrono | F16: 5797185506
C17: Aportes Por Cobrar Al Estado | F17: 369333831.4
C18: Otros Aportes Por Cobrar | F18: 250573204.7
C19: Mobiliario Y Equipo | F19: 0
C20: Equipo De Cómputo | F20: 0
C21: (Depreciación Acumulada) | F21: 0
C22: Costo de Programas Informáticos-Software | F22: 7618670
C23: (Amortización Programas Informáticos) | F23: -7618670
C24: GASTOS
C25: Pérdidas por Negociación de Instrumentos Financieros | F25: 0
C26: Pérdidas Por Fluctuación Cambiaria | F26: 251420836.4
C27: Pérdidas por Variaciones en la Unidad de Referencia | F27: 11862102.79
C28: Gastos Generales | F28: 478321387.2
C29: PASIVO
C30: Retenciones A Pensionados | H30: 668402972.8
C31: Obligaciones Por Liquidar Empleados | H31: 358670.26
C32: Obligaciones Transitorias por Liquidar | H32: 52333830.6
C33: Retención Por Servicios Recibidos | H33: 0
C34: Cotización Seguro De Enfermedad Y Maternidad | H34: 478171777.3
C35: Provisión Para Pensiones En Curso De Pago | H35: 4.933085185e+11
C36: INGRESOS
C37: Productos Sobre Inversiones De Emisores Nacionales | H37: 2786851101
C38: Intereses Sobre Saldos En Cuentas Bancarias | H38: 0
C39: Por Negociación de Instrumentos Financieros | H39: 0
C40: Ganancias por Fluctuación Cambiaria | H40: 376910599.4
C41: Ganancias por Variaciones en la Unidad de Referencia | H41: 372139561.5
C42: Ingresos sobre Préstamos de Afiliados | H42: 352473.08
C43: Otros Ingresos | H43: 1779213.49
C45: Sumas Iguales | F45: =SUM(F10:F28) -> 4.980458187e+11 | H45: =SUM(H30:H43) -> 4.980458187e+11
C68: Observación: Enlace al Manual de Políticas Contables.

Sheet Cambios Act. Netos Disponibles
B1: Fondo de Jubilaciones y Pensiones
B2: Estado de Cambios en los Activos Netos Disponibles
B3: Por el mes terminado al 31/01/2018
B4: (En colones sin céntimos)
D7: SALDO MENSUAL
C8: NOTAS
B9: SALDO INICIAL | E9: 2908712973 | F9: (1)
B11: INGRESOS | E11: 3538032948
B13: INGRESOS FINANCIEROS | D13: 3536253735
B14: Productos sobre Inversiones de Emisores Nacionales | C14: Nota 1 | D14: 2786851101
B15: Intereses sobre Saldos en Cuentas Corrientes | D15: 0
B16: Por negociación de instrumentos financieros | D16: 0
B17: Ganancias por Fluctuación Cambiaria | C17: Nota 2 | D17: 376910599.4
B18: Ganancias por Variaciones en la Unidad de Referencia | C18: Nota 3 | D18: 372139561.5
B19: Ingresos sobre Préstamos a Afiliados y Pensionados | C19: Nota 4 | D19: 352473.08
B21: OTROS INGRESOS | D21: 1779213.49
B23: PLAN DE CONTRIBUCIONES | C23: Nota 5 | E23: 5982792375
B25: RESERVAS EN FORMACION | D25: 5982792375
B26: De los trabajadores | D26: 2287762406
B27: Del Patrono | D27: 2968360112
B28: Del Estado | D28: 125547130.2
B29: De los Pensionados | D29: 601122727.7
B30: Rendimientos Acumulados | D30: 0
B32: UTILIDAD ( PERDIDA DEL EJERCICIO ) | D32: 0
B34: TOTAL ADICIONES | E34: 9520825324
B36: SALIDA DE RECURSOS | E36: 8891505349
B37: Por Nuevos Pensionados | C37: Nota 6 | D37: 8891505349
B39: GASTOS | E39: 741604326.4
B41: GASTOS FINANCIEROS | D41: 263282939.2
B42: Pérdida por Negociación de Inst. Financ. | C42: Nota 9 | D42: 0
B43: Pérdida por Fluctuación Cambiaria | C43: Nota 7 | D43: 251420836.4
B44: Pérdida por Variaciones en la Unidad de Referencia | C44: Nota 8 | D44: 11862102.79
B46: GASTOS GENERALES | C46: Nota 9 | D46: 478321387.2
B48: TOTAL DE DEDUCCIONES | E48: 9633109675
B50: ACTIVOS NETOS DISPONIBLES PARA BENEFICIOS
B51: FUTUROS AL FINAL DEL PERIODO (2) | E51: 2796428622
B54: Observaciones:
B55: (1) Saldo inicial mensual: Corresponde al total de activos disponibles para beneficios futuros al final del mes de Diciembre 2017.
B56: (2) Activos Netos Disponibles para Beneficios Futuros al Final del Periodo: Corresponde al total de ingresos menos el total de gastos.
B79: Observación: Enlace al Manual de Políticas Contables.

Sheet Act. Netos Dispon. Beneficios
B2: Fondo de Jubilaciones y Pensiones del Poder Judicial
B3: Estado de Activos Netos Disponibles para Beneficios
B4: AL 31/01/2018
B5: (En colones sin céntimos)
C6: NOTAS
B7: DISPONIBILIDADES | E7: 206064324
B8: Cuentas Corrientes y de Ahorro | C8: Nota 10 | D8: 206064324
B10: INVERSIONES EN VALORES | E10: 4.790385908e+11
B11: EN CURSO DE PAGO
B12: Inversiones en Valores de Emisores Nacionales | C12: Nota 11 | D12: 4.790385908e+11
B14: CUENTAS Y PRODUCTOS POR COBRAR SOBRE INVERSIONES | E14: 8724556793
B15: PROVISION PARA PENSIONES EN CURSO DE PAGO
B16: Cuentas Por Cobrar | C16: Nota 12 | D16: 196645526.8
B17: Productos Por Cobrar Sobre Inversiones De Emisores Nacionales | C17: Nota 13 | D17: 8527911266
B19: PRESTAMOS A AFILIADOS Y PENSIONADOS | E19: 43748880.94
B20: Préstamos por Cobrar | C20: Nota 14 | D20: 43746505.14
B21: Productos por Cobrar sobre Préstamos | C21: Nota 14 | D21: 2375.8
B23: APORTES POR COBRAR | E23: 9291253556
B24: Aportes Por Cobrar A Los Trabajadores | C24: Nota 15 | D24: 2874161014
B25: Aportes Por Cobrar Al Patrono | C25: Nota 15 | D25: 5797185506
B26: Aportes Por Cobrar Al Estado | C26: Nota 15 | D26: 369333831.4
B27: Otros Aportes Por Cobrar | C27: Nota 15 | D27: 250573204.7
B29: PROPIEDAD, PLANTA Y EQUIPO | E29: 0
B30: Mobiliario y Equipo | D30: 0
B31: Equipo de Cómputo | D31: 0
B32: (Depreciación Acumulada) | D32: 0
B34: OTROS ACTIVOS | E34: 0
B35: Intangibles | C35: Nota 16 | D35: 0
B37: ACTIVO TOTAL | E37: 4.973042144e+11
B39: CUENTAS POR PAGAR
B40: Retenciones A Pensionados | C40: Nota 17 | D40: 668402972.8 | E40: 721095473.6
B41: Obligaciones Por Liquidar Empleados y Exempleados | C41: Nota 18 | D41: 358670.26
B42: Intereses Por Devolver De Depósitos Judi | D42: 0
B43: Obligaciones Transitorias por Liquidar | C43: Nota 19 | D43: 52333830.6
B44: Retención Por Servicios Recibidos | C44: 23 | D44: 0
B46: PROVISIONES | E46: 478171777.3
B47: Cotización Seguro De Enfermedad y Maternidad | C47: Nota 20 | D47: 478171777.3
B49: PROVISIONES PARA PENSIONES EN CURSO DE PAGO | C49: Nota 21 | E49: 4.933085185e+11
B51: PASIVO TOTAL | E51: 4.945077858e+11
B53: ACTIVOS NETOS DISPONIBLES PARA BENEFICIOS FUTUROS (1) | E53: 2796428622
B55: CUENTAS DE ORDEN | C55: Nota 22 | E55: 44287013.36
B58: Observaciones:
B59: (1) Activos Netos Disponibles para Beneficios Futuros al Final del Periodo: Corresponde al total de ingresos menos el total de gastos.
B86: Observación: Enlace al Manual de Políticas Contables.

Sheet Actuarial
B2: Fondo de Jubilaciones y Pensiones
B3: Recursos Disponibles Para Atender Total de Beneficios y Pensiones Actuales
B4: Al 31 de Enero de 2018
B5: (En colones sin céntimos)
B8: VALOR PRESENTE ACTUARIAL DE INGRESOS | C8: NOTAS | E8: =+D10+D11 -> 2.360724221e+12
B10: Contribuciones Futuras Total activo población abierta (1 y 3) | D10: 1867415702029
B11: Provisión Para Pensiones en Curso de Pago (2) | D11: =+'Nota 21'!J13 -> 4.933085185e+11
B14: VALOR PRESENTE ACTUARIAL DE BENEFICIOS Población Abierta (1) | E14: =D15+D16+D17 -> 6176192485779
B15: Valor Presente Pensiones en Curso de Pago. Beneficios población pasiva.(4) | D15: 677998560169
B16: Valor Presente de Pensiones Futuras. Beneficios población activa.(5) | D16: 3265388579648
B17: Valor Presente de Pensiones Futuras. Beneficios población ingresante.(5) | D17: 2232805345962
B19: SUPERAVIT O DEFICIT ACTUARIAL DEL TOTAL DE PENSIONES | C19: NOTA 23 | E19: =+E8-E14 -> -3.815468265e+12
B22: SUPERAVIT O DEFICIT ACTUARIAL DE PENSIONES EN CURSO DE PAGO | C22: NOTA 24 | E22: =+D11-D15 -> -1.846900417e+11
B24: (1) Corresponde al último estudio actuarial con corte al 31 de diciembre del 2011.
B25: (2) Ver nota 24
B26: (3) Obedece al total de las cotizaciones proyectadas actuarialmente de los jubilados y pensionados actuales, así como los empleados y la generación futura, para los proximos cien año.
B27: (4) Coresponde al valor presente de las obligaciones de los pensionados y jubilados actuales, determinado en el estudio actuarial.
B28: (5) Coresponde al valor presente de las obligaciones de los pensionados y jubilados fututas, determinado en el estudio actuarial.
B30: Nota: Mediante oficio SP-25-2018 del 09/01/2018, la Superintendencia de Pensiones remite a consulta el proyecto de acuerdo para la modificación del Manual de Información para Regímenes de Pensiones de Capitalización Colectiva, el cual en caso de aprobarse se estaría eliminando la información referente al Estudio Acturial del Estado Financiero.
B54: Observación: Enlace al Manual de Políticas Contables.

Sheet Nota 1
B2: Nota 1:
B3: Productos sobre Inversiones de Emisores Nacionales
B5: al 31 de Enero de 2018
B7: MENSUAL
B9: PRODUCTOS SOBRE INVERSIONES DE VALORES NACIONALES | D9: COLONES | F9: DOLARES | H9: TOTAL
B11: Intereses devengados | D11: 2716879618 | F11: 181765890.7 | H11: =+D11+F11 -> 2898645509
B12: Amortización de descuento | D12: 3520499.01 | F12: 21137.06 | H12: =+D12+F12 -> 3541636.07
B13: Comisión devengada | D13: 0 | F13: -130184.67 | H13: -130184.67
B14: Amortización de prima | D14: -159225008.1 | F14: -979535.1 | H14: -160204543.2
B15: Otros intereses devengados | D15: 0 | F15: 0 | H15: 0
B16: Ingresos por Dividendos | D16: 0 | F16: 44998683.8 | H16: 44998683.8
B18: TOTAL DE PRODUC. SOBRE INVERS. DE VALORES NACIONALES. | D18: =SUM(D11:D16) -> 2561175109 | F18: =SUM(F11:F17) -> 225675991.8 | H18: =SUM(H11:H17) -> 2786851101

Sheet Nota 2
B2: Nota 2:
B3: Ganancias por Fluctuación Cambiaria
B5: =+'Nota 1'!$B$5:$H$5 -> al 31 de Enero de 2018
B7: Cuenta | D7: Mes
B8: Por Cuentas Corrientes | D8: 4825481.37
B9: En Inversiones En Valores De Emisores Nacionales $ | D9: 367935133.5
B10: Por Cuentas Por Cobrar | D10: 54690.85
B11: Por Productos Por Cobrar Sobre Inversion | D11: 4095293.67
B12: Ganancia Total Generada | D12: =SUM(D8:D11) -> 376910599.4

Sheet Nota 3
B2: Nota 3:
B3: Ganancias por Variaciones en la Unidad de Referencia
B5: =+'Nota 1'!$B$5:$H$5 -> al 31 de Enero de 2018
B8: Cuenta | D8: Mes
B9: En valores emitidos por el Gobierno | D9: 372139561.5
B10: Ganancia Total Generada | D10: =SUM(D9:D9) -> 372139561.5

Sheet Nota 4
B2: Nota 4:
B3: Ingresos sobre Préstamos a Afiliados y Pensionados
B5: =+'Nota 1'!$B$5:$H$5 -> al 31 de Enero de 2018
B7: Total de Préstamo | D7: Entidad | F7: Plazo | H7: Tasa actual | J7: Ingreso Por Interes mensual
B9: 1000000000 | D9: ANEJUD | F9: 10 años | H9: 0.0874 | J9: 352473.08

Sheet Nota 5
B2: Nota 5:
B4: PLAN DE CONTRIBUCIONES
B6: =++'Nota 1'!$B$5:$H$5 -> al 31 de Enero de 2018
B8: Aportes | D8: Porcentajes | F8: Mensual
B10: Trabajadores | D10: 0.11 | F10: 2287762406
B11: Patrono | D11: 0.1436 | F11: 2968360112
B12: Estado 1 | D12: 0.0058 | F12: 125547130.2
B13: Jubilados y Pensionados | D13: 0.11 | F13: 601122727.7
B15: Total Aportes | F15: =SUM(F10:F13) -> 5982792375
B17: Nota: 1-) Mediante Acuerdo del Consejo Superior N° 2-2018, art I, se autoriza a disminuir el porcentaje del aporte estatal, a partir del mes de enero 2018 pasando de 1.24% a 0.58%, lo anterior por cuanto el Ministerio de Hacienda recortó del Presupuesto del Poder Judicial la suma de ¢1,200,000,000 (Mil doscientos millones de colones)

Sheet Nota 6
B2: Nota 6:
C4: SALIDA DE RECURSOS
C6: =+'Nota 5'!B6 -> al 31 de Enero de 2018
E8: Mensual
C10: Aportes | E10: 5982792375
C11: Rendimientos | E11: 2908712973
C13: TOTAL | E13: =SUM(E10:E11) -> 8891505349
B15: Observación: Corresponde al traslado de todos los recursos de la cuenta patrimonial "Reserva en formación" a la cuenta "Provisión para pensiones en curso de pago"

Sheet Nota 7
B2: Nota 7:
B3: Pérdida por Fluctuación Cambiaria
B5: =+'Nota 6'!C6 -> al 31 de Enero de 2018
B7: Cuenta | D7: Mes
B8: Por Cuentas Corrientes | D8: 385487.4
B9: En Inversiones En Valores De Emisores Nacionales $ | D9: 248391873.6
B10: Por Cuentas Por Cobrar | D10: 792.7
B11: Por Productos Por Cobrar Sobre Inversión | D11: 2642682.76
B12: Pérdida Total Generada | D12: =SUM(D8:D11) -> 251420836.4

Sheet Nota 8
B2: Nota 8:
B4: Pérdida por Variaciones en la Unidad de Referencia
B6: =+'Nota 7'!B5:F5 -> al 31 de Enero de 2018
B8: Cuenta | D8: Mes
B9: En valores emitidos por el Gobierno | D9: 11862102.79
B10: Pérdida Total Generada | D10: =SUM(D9:D9) -> 11862102.79

Sheet Nota 9
B2: Nota 9:
B3: GASTOS GENERALES
B5: =+'Nota 8'!B6:F6 -> al 31 de Enero de 2018
B7: GASTOS GENERALES | D7: MENSUAL
B9: Servicios Bancarios | D9: 74651.83
B10: Cotización Seguro De Enfermedad y Maternidad | D10: 478165805.9
B11: Gastos Diversos | D11: 80929.54
B13: TOTAL DE GASTOS GENERALES | D13: =SUM(D9:D12) -> 478321387.2

Sheet Nota 10
B2: Nota 10:
B3: Cuentas Corrientes y de Ahorro
B5: =+'Nota 9'!B5:F5 -> al 31 de Enero de 2018
B7: CUENTAS CORRIENTES Y DE AHORRO PROV. PARA PENSIONES EN CURSO DE PAGO | D7: TOTAL ¢ | F7: TIPO DE CAMBIO | H7: TOTAL $
B9: Banco Nacional de C.R. Cta 1234-0 | D9: 15251160.01
B10: Banco de Costa Rica Cta 229-32-9 | D10: 172275050.6
B11: Banco de Costa Rica Cta 174961-7 | D11: 99000
B12: Banco Popular Cta 1019277-0 | D12: 16656642.97
B13: Banco Nacional de C.R. 2413-8 | D13: 0
B14: Banco de Costa Rica 349803-4 | D14: 64.32
B15: Banco de Costa Rica 349824-7 | D15: 30.65
B16: Banco de Costa Rica Cta. 112247-9 $ | D16: 1329077.16 | F16: 571.48 | H16: =+D16/F16 -> 2325.675719
B17: Banco Nacional de C.R. Cta 601227-7 $ | D17: 167573.72 | F17: 571.48 | H17: =+D17/F17 -> 293.2276195
B18: Banco Popular Cta 1914-1 $ | D18: 285724.96 | F18: 571.48 | H18: 499.9736824
B20: TOTAL EN CUENTAS CORRIENTES Y DE AHORRO | D20: =SUM(D9:D18) -> 206064324.3 | H20: =SUM(H16:H18) -> 3118.877021

Sheet Nota 11
B2: Nota 11:
B3: Inversiones en Valores de Emisores Nacionales
B5: =+'Nota 10'!B5:H5 -> al 31 de Enero de 2018
B7: COLONES
B9: Inv. Valor Facial | D9: 4.239341913e+11
B10: Primas | D10: 1.024639869e+10
B11: Descuentos | D11: -83370348.04
B13: SALDO INVERSIONES EN COLONES | D13: =SUM(D9:D11) -> 4.340972196e+11
B16: SALDO DÓLARES | F16: TIPO DE CAMBIO | H16: SALDO EN COLONES
B18: Inv. Valor Facial | D18: =+H18/F18 -> 66641488.07 | F18: 571.48 | H18: 3.80842776e+10
B19: Primas | D19: =+H19/F19 -> 91538.59008 | F19: 571.48 | H19: 52312473.46
B20: Descuentos | D20: =+H20/F20 -> -8697.650014 | F20: 571.48 | H20: -4970533.03
B21: Títulos de Participación | D21: =+H21/F21 -> 11915993.01 | F21: 571.48 | H21: 6809751685
B23: SALDO INVERSIONES EN DÓLARES (COLONIZADO) | D23: =SUM(D18:D21) -> 78640322.02 | H23: =SUM(H18:H21) -> 4.494137123e+10
B25: TOTAL GENERAL: | D25: =+D13+H23 -> 4.790385908e+11

Sheet Nota 12
B2: Nota 12:
B3: CUENTAS POR COBRAR
B5: =+'Nota 11'!B5:H5 -> al 31 de Enero de 2018
B7: Cuentas por Cobrar | D7: TOTAL
B9: Títulos vencidos pendientes de cobro | D9: 0
B10: Impuesto Sobre La Renta Por Cobrar (1) | D10: 196645505.2
B11: Sumas Pend. De cobrar (2) | D11: 21.61
B13: Saldo: | D13: =D9+D10+D11 -> 196645526.8
B15: 1-) Corresponden aquellas sumas que debe recuperar el Régimen por concepto de exención del 8% del impuesto sobre la renta de los títulos valores, que por su situación particular, no es posible cobrarlos inmediatamente con el vencimiento de los cupones
B18: 2-) En esta cuenta se registrará las cuentas por cobrar, generadas de la captación de inversiones, por comisiones pagadas de más, intereses moratorios u otros.

Sheet Nota 13
B2: Nota 13:
B4: Productos por cobrar sobre Inversiones de Emisores Nacionales
B6: =+'Nota 12'!B5:D5 -> al 31 de Enero de 2018
B8: Productos por cobrar sobre Inversiones | D8: TOTAL
B10: Sobre Valores Emitidos Por El Banco Central | D10: 501756507.4
B11: Sobre Valores Emitidos Por El Gobierno | D11: 7092532936
B12: Sobre Valor. Emit. otras Ent Pub. no Fininancieras | D12: 228483795.4
B13: Sobre Valores Emitidos Por Bancos Comerciales | D13: 356118968.4
B14: Sobre Val. Emit. Bcos. Pub. Ley. Especiales | D14: 280310047.1
B15: Sobre Val. Emit. Bcos. Bancos Privados | D15: 23710328.02
B16: Dividendos por Cobrar | D16: 44998683.8
B18: Saldo | D18: =SUM(D10:D17) -> 8527911266

Sheet Nota 14
B2: Nota 14:
B3: Préstamos por Cobrar
B5: =+'Nota 13'!B6:D6 -> al 31 de Enero de 2018
B7: SUMAS GIRADAS A: | D7: MONTO
B9: ANEJUD: Débito No. 2863 de la Cta 174961-7 BCR el 9 de diciembre de 2008 (Autorizado por la Dirección Ejecutiva oficio No.9488-DE-08) | D9: 166244019.2
B10: ANEJUD: Débito No. 20806860 de la Cta 1234-0 BNCR el 9 de diciembre de 2008 (Autorizado por la Dirección Ejecutiva oficio No.9488-DE-08) | D10: 410921974.9
B11: ANEJUD: Débito No. 379 de la Cta 229-32-9 BCR el 10 de febrero de 2009 (Autorizado por la Dirección Ejecutiva con oficio No. 1123-DE-2009 ). El desembolso autorizado por esa Dirección Ejecutiva es por ¢422.834.006 de los cuales y a solicitud de ANEJUD con oficio del 10 de febrero de 2009 a Don Walter Jiménez Sorio, Jefe del Departamento Financiero Contable en su oportunidad, se deduce la primera cuota de intereses cancelada por adelantado de ¢6.876.239. El total girado con el débito No. 379 es ¢415.957.767. | D11: 422834006
B13: TOTAL DE LOS DESEMBOLSOS | D13: =SUM(D9:D11) -> 1000000000
B15: Menos. Amortizaciones | D15: 956253494.6
B17: Saldo del préstamo | D17: =+D13-D15 -> 43746505.36
B19: Mas: Intereses por cobrar | D19: 2376
B21: TOTAL POR COBRAR | D21: =+D17+D19 -> 43748881.36

Sheet Nota 15
B2: Nota 15:
B3: APORTES POR COBRAR
B5: =+'Nota 14'!B5:D5 -> al 31 de Enero de 2018
B7: Nota | D7: Sub-nota | F7: APORTES POR COBRAR | H7: Detalle | J7: Total
B9: 15.1 | F9: Aporte por cobrar a los trabajadores | J9: =+H10+H11+H12 -> 2874161014
D10: 15.1.1 | F10: Aporte Ordinario | H10: 1401685.65
D11: 15.1.2 | F11: Aporte Ordinario S .Escolar | H11: 179602645.7
D12: 15.1.3 | F12: Aporte Reconocimiento de tiempo servido | H12: 2693156683
B13: 15.2 | F13: Aportes por cobrar al Patrono | J13: =+H14+H15 -> 5797185506
D14: 15.2.1 | F14: Aportes Por Cobrar Poder Jud.-Patrono | H14: 2740786524
D15: 15.2.2 | F15: Apor. x Cobrar Poder Jud.-Patrono (S.E) | H15: 3056398982
B16: 15.3 | F16: Aportes por cobrar al Estado | J16: =+H17+H18 -> 369333831.4
D17: 15.3.1 | F17: Aportes Por Cobrar Poder Jud.-Estado | H17: 115969657.1
D18: 15.3.2 | F18: Apor. x Cobrar Poder Jud.-Estado (S.E) | H18: 253364174.3
B19: 15.4 | F19: Otros aportes por cobrar | J19: =+H20+H21+H22+H23 -> 250573204.7
D20: 15.4.1 | F20: Sumas canceladas de más a Jubilados y Pensionados | H20: 142338058.8
D21: 15.4.2 | F21: Aportes Reconocimiento de Tiempo Servido Fuera del Poder Judicial (RTSFPJ) | H21: 7540290.01
D22: 15.4.3 | F22: Otros aportes por cobrar entidades deductoras | H22: 1357524.06
D23: 15.4.4 | F23: Sumas canceladas de más a Jubilados y Pensionados (Aguinaldo) | H23: 99337331.87
F25: TOTAL | J25: =SUM(J9:J23) -> 9291253556

Sheet Nota 16
B2: Nota 16:
B3: INTANGIBLES
B5: =+'Nota 15'!B5:J5 -> al 31 de Enero de 2018
B7: Detalle | D7: Monto | F7: Amortización | H7: Total
B8: Sistema inversiones "Internet Systems Development Insyde S.A" | D8: 7618670 | F8: -7618670 | H8: 0
B11: Nota:
B12: Corresponde al registro de la compra del Sistema de Inversiones a la empresa Internet Systems Development Insyde S.A. con un valor de $14,750.00, valorado al tipo de cambio de la fecha de adquisición del activo (15 de agosto de 2007) de ¢516.52, para un total de ¢7,618,670. A dicho monto se descuenta la amortización acumulada al cierre del presente mes que asciende a ¢7,618,670 para un activo neto de ¢0.00. La vida útil del sistema en mención es de 5 años y considerando que fue registrado en setiembre del 2007 se encuentra depreciado en su totalidad, no obstante, a la fecha de este informe se encuentra en funcionamiento. En el periodo comprendido entre el 15 de julio a 12 de diciembre del 2011 la Dirección de Tecnología de Información realizó mejoras al sistema de Inversiones por la suma de ¢1.673.895. Lo anterior, de acuerdo con la información suministrada por la Dirección de Tecnología de la Información, mediante correo electrónico del 27 de abril del 2017 y oficio 1635-DTI-2017, dicho monto se encuentra registrado actualmente en los registros contables del Poder Judicial por igual suma. Con oficio 425-SC-2015 de 26 de agosto del 2015, se realizó la consulta a la Superintendencia de Pensiones (SUPEN) sobre la forma de registro contable de la información suministrada por la Dirección de Tecnología de Información, en virtud de que, en el Manual de Cuentas para el Régimen de Capitalización Colectiva emitido por dicha Superintendencia, no se observa alguna cuenta contable para el registro de la reevaluación de activos intangibles. La SUPEN ante la consulta realizada, indicó lo siguiente: “[…] conforme lo establecido en las Normas internacionales de Información Financiera (NIIF), se le comunica que no existe forma alguna de atribuir costo a un activo intangible luego del final de su vida útil: aunque esté en operación y generando beneficios, su valor en libros deberá seguir siendo cero…”

Sheet Nota 17
B2: Nota 17
B4: Retenciones A Pensionados
B6: =+'Nota 16'!B5:H5 -> al 31 de Enero de 2018
B8: RETENCIONES A JUBILADOS Y PENSIONADOS | D8: TOTAL
B10: Impuesto Sobre La Renta | D10: 395132619.5
B11: Caja Costarricense Seguro Social | D11: 273237606.2
B12: Pensiones Alimentarias | D12: 32747
B14: TOTAL DE RETENCIONES A JUBILADOS Y PENSIONADOS | D14: =SUM(D9:D12) -> 668402972.8

Sheet Nota 18
B2: Nota 18:
B4: Obligaciones Por Liquidar Empleados y Exempleados
B6: =+'Nota 17'!B6:D6 -> al 31 de Enero de 2018
B8: OBLIGACIONES POR LIQUIDAR EMPL. Y EXEMPL. | D8: TOTAL
B10: VCLO | D10: 64093.76
B11: VAMP | D11: 8033.72
B12: CMJW | D12: 31014.25
B13: FJJA | D13: 1544.25
B14: SZMT | D14: 204337.78
B15: MTMA | D15: 49646.47
B17: OBLIGACIONES POR LIQUIDAR EMPL. Y EXEMPL. | D17: =SUM(D10:D16) -> 358670.23

Sheet Nota 19
B2: Nota 19:
B4: Obligaciones Transitorias por Liquidar
B6: =+'Nota 18'!B6:D6 -> al 31 de Enero de 2018
B8: Obligaciones Transitorias por Liquidar | D8: Saldo
B10: Benef. no retirados y por fallecimiento | D10: 44247511.08
B11: Sumas en transito por aclarar | D11: 2893344.97
B12: Institucione Financieras Banco Popular y de Desarr | D12: 498197.34
B13: Instituciones Gubernamentales-Caja Costarricense d | D13: 3759449.03
B14: Anejud | D14: 703077.45
B15: Instituciones Financieras-Banco Popular y de Desar | D15: 232250.73
B17: Total Obligaciones Transitorias por Liquidar | D17: =SUM(D10:D15) -> 52333830.6

Sheet Nota 20
B2: Nota 20:
B4: Cotización Seguro De Enfermedad y Maternidad
B6: =+'Nota 19'!B6:D6 -> al 31 de Enero de 2018
B8: Entidad | D8: Porcentaje | F8: Monto
B9: Caja Costarricense del Seguro Social | D9: 0.0875 | F9: 478171777.3

Sheet Nota 21
B2: Nota 21:
B3: PROVISIONES PARA PENSIONES EN CURSO DE PAGO
B5: =+'Nota 20'!B6:F6 -> al 31 de Enero de 2018
B7: Nota | D7: Sub-nota | F7: APORTES POR COBRAR | H7: Detalle | J7: Total
B9: 21.1 | F9: Recursos recibido de reservas en formación | J9: 9.424748282e+11
B10: 21.2 | F10: (Menos) Pago plan de beneficios | J10: 4.491663097e+11
D11: 21.2.1 | F11: Traslados a otros regímenes | H11: 460991805.3
F13: TOTAL | J13: =+J9-J10 -> 4.933085185e+11

Sheet Nota 22
B2: Nota 22:
B4: CUENTAS DE ORDEN DEUDORAS Y ACREDORAS
B6: =+'Nota 21'!B5:J5 -> al 31 de Enero de 2018
B8: Concepto | D8: Monto
B9: Cuentas por cobrar por reconocimiento de tiempo servido en otras dependencias o instituciones públicas, de aquellos servidores en condición de propietarios que renunciaron al Poder Judicial. | D9: 44287013.36

Sheet Nota 23
B2: Nota 23:
B4: SUPERAVIT O DEFICIT ACTUARIAL DEL TOTAL DE PENSIONES
B8: SUPERÁVIT O DÉFICIT ACTUARIAL DEL TOTAL DE PENSIONES | D8: TOTAL
B10: Dèficit al 31-12-2017 | D10: -3818893139922
B11: Más: Total de ingresos a la Provisión para Pensiones en Curso de Pago del mes | D11: 8891482543
B12: Menos: Total de egresos de la Provisión para Pensiones en Curso de Pago del mes | D12: 5466607862
B14: SUPERÁVIT O DÉFICIT AL 31-01-2018 | D14: =+D10+D11-D12 -> -3.815468265e+12

Sheet Nota 24
B2: Nota 24:
B4: SUPERAVIT O DEFICIT ACTUARIAL DE PENSIONES EN CURSO DE PAGO
B7: DÉFICIT ACTUARIAL DE PENSIONES EN CURSO DE PAGO | D7: TOTAL
B9: Provisión para Pensiones en Curso de Pago ( Nota 21) | D9: 4.933085185e+11
B10: Menos: Valor Presente Pensiones en Curso de Pago (4) | D10: 677998560169
B12: =+'Nota 23'!B14 -> SUPERÁVIT O DÉFICIT AL 31-01-2018 | D12: =+D9-D10 -> -1.846900417e+11
